Cogmind - Beta 17 @@@ ROGUE MODE // 2026.08.19 @ 13:10:05 Player: 4R-ZE3 Result: Destroyed by YI-UF0 with YI-UF0's Doublenader Performance ------------- Evolutions (0) 0 Regions Visited (4) 800 Robots Destroyed (24) 120 Value Destroyed (643) 643 Prototype IDs (23) 460 Alien Tech Used (0) 0 Bonus (349) 349 TOTAL SCORE: 2372 Bonus ------- Follower Combat Kills 49 Aligned with FarCom 300 Cogmind --------- Core Integrity 0/250 Matter 285/300 Energy 265/265 System Corruption 5% Temperature Cool (30) Movement Rolling (170) Ox6 Location -9/Mines Parts ------- > --- POWER (1) -------- Improved Ion Engine > --- PROPULSION (2) --- Wheel > --- UTILITY (2) ------ High-capacity Storage Unit Targeting Computer > --- WEAPON (2) ------- Slug Cannon Bore Cannon > --- INVENTORY (20) --- Ion Engine Light Ion Engine Light Nuclear Core Light Treads Light Treads Light Treads Wheel Heat Sink Heat Sink Heat Sink Small Storage Unit High-capacity Matter Pod (200) Modified TNC Light Armor Plating Light Armor Plating Light Armor Plating Particle Gun Particle Gun Beam Cannon Rocket Launcher Peak State ------------ > --- POWER ------------ Improved Ion Engine > --- PROPULSION ------- Wheel Wheel > --- UTILITY ---------- High-capacity Storage Unit Targeting Computer > --- WEAPON ----------- Slug Cannon Bore Cannon > --- INVENTORY -------- Ion Engine Light Ion Engine Light Nuclear Core Light Treads Light Treads Light Treads Wheel Heat Sink Heat Sink Heat Sink Small Storage Unit High-capacity Matter Pod Modified TNC Light Armor Plating Light Armor Plating Light Armor Plating Particle Gun Particle Gun Beam Cannon Rocket Launcher [Rating: 18] Favorites ----------- Power Ion Engine Engine Ion Engine Propulsion Light Treads Treads Light Treads Wheel Wheel Utility Small Storage Unit Device Heat Sink Storage Small Storage Unit Processor Targeting Computer Weapon Light Assault Rifle Energy Gun Medium Laser Energy Cannon Beam Cannon Ballistic Gun Light Assault Rifle Ballistic Cannon Slug Cannon Build | -11 -10 -10 -10 -9 ------- Run | Yrd Mat Min Exi Min Slots Evolved . | . . . . . Power . | . . . . . Propulsion . | . . . . . Utility . | . . . . . Weapon . | . . . . . Parts Attached 24 | 7 3 11 2 1 Power 4 | 1 1 2 . . Engine 4 | 1 1 2 . . Core . | . . . . . Reactor . | . . . . . Propulsion 6 | 2 . 4 . . Treads 4 | 2 . 2 . . Leg . | . . . . . Wheel 2 | . . 2 . . Hover . | . . . . . Flight . | . . . . . Utility 5 | 1 1 2 . 1 Device 2 | . 1 1 . . Storage 2 | 1 . 1 . . Processor 1 | . . . . 1 Hackware . | . . . . . Protection . | . . . . . Artifact . | . . . . . Weapon 9 | 3 1 3 2 . Energy Gun 3 | 1 . 2 . . Energy Cannon 1 | . . 1 . . Ballistic Gun 3 | 2 1 . . . Ballistic Cannon 2 | . . . 2 . Launcher . | . . . . . Special Weapon . | . . . . . Impact Weapon . | . . . . . Slashing Weapon . | . . . . . Piercing Weapon . | . . . . . Special Melee Weapon . | . . . . . Unidentified Prototypes . | . . . . . Parts Lost 10 | . . 9 . 1 Power 1 | . . 1 . . Propulsion 5 | . . 4 . 1 Utility 1 | . . 1 . . Weapon 3 | . . 3 . . Highest Loss Streak 5 | . . 5 . 1 To Critical Strikes . | . . . . . Average Backups 11 | 2 7 9 18 18 Power 1 | . 1 1 2 2 Propulsion 3 | 1 3 2 4 4 Utility 2 | . . 2 6 8 Weapon 3 | . 2 3 5 4 Tool/Special . | . . . . . Unused Backups 17 | . 3 . . 14 Power 2 | . . . . 2 Propulsion 6 | . 2 . . 4 Utility 7 | . . . . 7 Weapon 2 | . 1 . . 1 Tool/Special . | . . . . . Average Slot Usage (%) 94 | . 96 96 71 100 Engine 13 | . 14 13 14 14 Treads 14 | . 28 12 . . Wheel 12 | . . 13 28 28 Device 10 | . 10 13 14 . Storage 14 | . 14 14 14 14 Processor 2 | . . . . 13 Energy Gun 9 | . 14 11 . . Energy Cannon 2 | . . 6 . . Ballistic Gun 8 | . 14 10 . . Ballistic Cannon 4 | . . . . 28 Peak Build Rating 18 | 6 7 12 17 18 Average Rating 9 | 4 6 8 8 17 On Entrance 8 | . 6 7 12 17 Avg Prop Armor Cover (%) 12 | . . 12 . . Naked Turns . | . . . . . Heaviest Build 64 | 14 15 54 64 64 Greatest Support 40 | 40 40 40 20 20 Greatest Overweight (x) 4 | . . 4 3 3 Average Overweight (x) 1 | . . 2 2 3 Largest Inventory Capacity 20 | 8 8 20 20 20 Average Capacity 13 | 6 8 15 20 20 Most Carried 20 | 4 8 16 19 20 Average Carried 11 | 2 7 9 18 18 Final Capacity 20 | 8 8 20 20 20 Final Carried 20 | 4 8 16 17 20 Class Distribution -------------------- 73% | Mutant 16% | Derelict-Mutant 10% | Scavenger-Mutant Dominant Class ---------------- Mutant | -10/Materials Mutant | -10/Mines Mutant | -10/Exiles Derelict-Mutant | -9/Mines Resources | -11 -10 -10 -10 -9 ----------- Run | Yrd Mat Min Exi Min Matter Collected 709 | 128 212 161 . 208 Remotely . | . . . . . Salvage Created 783 | . 257 388 . 138 Parts 53 | . 22 22 . 9 Haulers Intercepted . | . . . . . Recyclers Shooed . | . . . . . Parts Field Recycled . | . . . . . Retrieved Matter . | . . . . . Parts Self-Destructed . | . . . . . Prevented . | . . . . . Parts Restored . | . . . . . Kills | -11 -10 -10 -10 -9 ------- Run | Yrd Mat Min Exi Min Combat Hostiles Destroyed 31 | . 10 17 . 4 Guns 24 | . 10 14 . . Cannons 7 | . . 3 . 4 Classes Destroyed 5 | . 2 2 . 1 Tunneler 1 | . . . . 1 Swarmer 10 | . 6 3 . 1 Grunt 11 | . 4 4 . 3 Sentry 2 | . . 2 . . Assembled 8 | . . 8 . . Best Kill Streak 8 | . 3 8 . 2 Combat Bots Only 8 | . 3 8 . 2 Max Kills in Single Turn 2 | . 1 2 . 1 Gunslinging 1 | . . 1 . . Exploded . | . . . . . Melee . | . . . . . Uniques/NPCs Destroyed . | . . . . . Combat | -11 -10 -10 -10 -9 -------- Run | Yrd Mat Min Exi Min Hostile Shots Fired 179 | . 73 81 . 25 Missed 43 | . 17 18 . 8 Hits 136 | . 56 63 . 17 Melee 6 | . . 6 . . Projectile 130 | . 56 57 . 17 AOE 3 | . . . . 3 Damage Taken 1608 | . 458 917 . 233 Core 256 | . 77 142 . 37 Absorbed by Shields . | . . . . . Core Remaining (%) 100 | 100 . . . . Volleys Fired 83 | . 22 49 . 12 Largest 2 | . 2 2 . 2 Hottest 130 | . 70 130 . 88 Shots Fired 168 | . 44 100 . 24 Gun 117 | . 44 73 . . Cannon 51 | . . 27 . 24 Launcher . | . . . . . Special . | . . . . . Kinetic 101 | . 22 55 . 24 Thermal 67 | . 22 45 . . Explosive . | . . . . . Electromagnetic . | . . . . . Robot Hit Streak 20 | . 10 20 . 5 Robot Miss Streak 12 | . 6 6 . 12 Penetration Max . | . . . . . Secondary Targets 7 | . 4 3 . . Max Gunslinging Chain 1 | . 1 1 . . Shots Hit Robots 96 | . 24 67 . 5 Core Hits 50 | . 14 31 . 5 Critical Kills 2 | . . . . 2 Critical Parts Destroyed . | . . . . . Critical Strikes 6 | . 4 . . 2 Burn 4 | . 4 . . . Destroy 2 | . . . . 2 Melee Attacks . | . . . . . Impact . | . . . . . Slashing . | . . . . . Piercing . | . . . . . Sneak Attacks . | . . . . . Combat Hostiles . | . . . . . Follow-up Attacks . | . . . . . Damage Inflicted 1243 | . 300 773 . 170 Guns 772 | . 300 472 . . Cannons 471 | . . 301 . 170 Explosions . | . . . . . Melee . | . . . . . Ramming . | . . . . . Kinetic 569 | . 96 303 . 170 Thermal 674 | . 204 470 . . Explosive . | . . . . . Electromagnetic . | . . . . . Impact . | . . . . . Slashing . | . . . . . Piercing . | . . . . . Highest Corruption 5 | . . 5 5 5 Average Corruption 4 | . . 4 5 5 Corruption Purged . | . . . . . Corruption Blocked . | . . . . . Effects 27 | . . 17 4 6 Message Errors 5 | . . 3 . 2 Matter Fused 6 | . . 2 2 2 Heat Flow Errors 5 | . . 1 2 2 Energy Discharges 6 | . . 6 . . Parts Rejected 1 | . . 1 . . Data Loss (minor) 1 | . . 1 . . Data Loss (major) 1 | . . 1 . . Misfires 2 | . . 2 . . Overload Shots . | . . . . . Overflow Damage . | . . . . . Projectiles . | . . . . . Explosions . | . . . . . Melee . | . . . . . Knockbacks . | . . . . . Impact . | . . . . . Kinetic . | . . . . . Secondary . | . . . . . Self-Inflicted Damage . | . . . . . Shots . | . . . . . Rammed . | . . . . . Targets Rammed . | . . . . . Kicked . | . . . . . Crushed . | . . . . . Highest Temperature 230 | . 140 222 230 224 Average Temperature 66 | . 48 62 106 86 Received Heat Transfer 276 | . 36 225 . 15 Effects 1 | . . 1 . . Energy Bleed 1 | . . 1 . . Siege Activations . | . . . . . Martial Activations . | . . . . . Shielding Activations . | . . . . . Robots Disrupted . | . . . . . Combat Hostiles . | . . . . . Robots Corrupted . | . . . . . Combat Hostiles . | . . . . . Parts Fried . | . . . . . Impact Corruptions . | . . . . . Robots Melted . | . . . . . Combat Hostiles . | . . . . . Parts Melted 2 | . 2 . . . Heat Transferred 1961 | . 888 1073 . . Parts Sabotaged . | . . . . . Parts Stolen . | . . . . . Parts Stripped . | . . . . . Power Chain Reactions . | . . . . . Alert | -11 -10 -10 -10 -9 ------- Run | Yrd Mat Min Exi Min Maximum Alert Level 1 | . 1 . . . Low Security (%) 95 | 100 88 100 . 100 Level 1 4 | . 11 . . . Level 2 . | . . . . . Level 3 . | . . . . . Level 4 . | . . . . . Level 5 . | . . . . . High Security . | . . . . . Max Security . | . . . . . Peak Influence 237 | . 237 110 . 122 Initial 80 | . . 80 . . Average 49 | . 78 23 . 45 Influence Increases 901 | . 403 266 . 232 Destroy 0b10 Robot/C 520 | . 200 180 . 140 Destroy 0b10 Robot/NC 5 | . . . . 5 Destroy Leader 110 | . 40 40 . 30 Allied During Kill 27 | . . . . 27 Successful Hack 12 | . 12 . . . Select Force Hacks 60 | . 60 . . . Disable Machine 30 | . . 15 . 15 Destroy Structure 17 | . 1 1 . 15 Lose Combat Pursuer 120 | . 90 30 . . Influence Decreases 849 | . 196 473 . 180 Entered New Map 127 | . . 127 . . Time Decay 612 | . 196 266 . 150 Lost Part 90 | . . 80 . 10 Lost Ally 20 | . . . . 20 Squads Dispatched 3 | . 3 . . . Investigation 3 | . 3 . . . Extermination . | . . . . . Reinforcement . | . . . . . Assault . | . . . . . Garrison . | . . . . . Intercept . | . . . . . Searches Triggered . | . . . . . Construction Impeded . | . . . . . Haulers Reinforced . | . . . . . Active Scanning Responses . | . . . . . Cargo Convoy Interrupts . | . . . . . Stealth | -11 -10 -10 -10 -9 --------- Run | Yrd Mat Min Exi Min Distress Signals 2 | . 2 . . . Communications Jammed . | . . . . . Distress Signals . | . . . . . Times Spotted 47 | . 17 22 . 8 Peak Tracking Total 15 | . 7 15 . 3 Tactical Retreats 4 | . 2 2 . . Traps | -11 -10 -10 -10 -9 ------- Run | Yrd Mat Min Exi Min Traps Triggered 1 | . 1 . . . Indirectly . | . . . . . Trap Hack Attempts . | . . . . . Triggered . | . . . . . Disarmed . | . . . . . Reprogrammed . | . . . . . Reused . | . . . . . Traps Extracted . | . . . . . Installed . | . . . . . Triggered . | . . . . . Machines | -11 -10 -10 -10 -9 ---------- Run | Yrd Mat Min Exi Min Machines Disabled 3 | . . 2 . 1 Max in Single Turn 1 | . . 1 . 1 Machines Repaired . | . . . . . Machines Dismantled . | . . . . . Machines Sabotaged . | . . . . . Overloaded Fab Kills . | . . . . . Hacking | -11 -10 -10 -10 -9 --------- Run | Yrd Mat Min Exi Min Machines Accessed 8 | . 7 . 1 . Terminals 5 | . 5 . . . Fabricators . | . . . . . Repair Stations . | . . . . . Recycling Units 2 | . 2 . . . Scanalyzers . | . . . . . Garrison Access . | . . . . . Total Hacks 14 | . 13 . 1 . Successful 7 | . 6 . 1 . Failed 6 | . 6 . . . Catastrophic 1 | . 1 . . . Database Lockouts 1 | . 1 . . . Manual 14 | . 13 . 1 . Terminals 11 | . 11 . . . Fabricators . | . . . . . Repair Stations . | . . . . . Recycling Units 2 | . 2 . . . Scanalyzers . | . . . . . Garrison Access . | . . . . . Terminal Hacks 2 | . 1 . 1 . Robot Analysis 1 | . 1 . . . Proto ID Catalog 1 | . . . 1 . Fabricator Hacks . | . . . . . Repair Station Hacks . | . . . . . Recycling Unit Hacks . | . . . . . Scanalyzer . | . . . . . Garrison Access Hacks . | . . . . . Unauthorized Hacks 5 | . 5 . . . Terminals 3 | . 3 . . . Botnet 3 | . 3 . . . Fabricators . | . . . . . Repair Stations . | . . . . . Recycling Units 2 | . 2 . . . Tunnel 2 | . 2 . . . Scanalyzers . | . . . . . Garrison Access . | . . . . . Data Cores Recovered . | . . . . . Used . | . . . . . Hacking Detections 4 | . 4 . . . Full Trace Events . | . . . . . Feedback Events . | . . . . . Feedback Blocked . | . . . . . Robot Schematics Acquired . | . . . . . Robots Built . | . . . . . Authchips . | . . . . . Time . | . . . . . Total Robot Build Rating . | . . . . . Part Schematics Acquired . | . . . . . Parts Built . | . . . . . Authchips . | . . . . . Time . | . . . . . Total Part Build Rating . | . . . . . Part Studies Acquired . | . . . . . Parts Repaired . | . . . . . Time . | . . . . . Parts Recycled . | . . . . . Recycled Matter . | . . . . . Retrieved Matter . | . . . . . Retrieved Components . | . . . . . Parts Scanalyzed . | . . . . . Part Schematics Acquired . | . . . . . Parts Damaged . | . . . . . Bothacking | -11 -10 -10 -10 -9 ------------ Run | Yrd Mat Min Exi Min Used RIF Installer . | . . . . . Robots Hacked . | . . . . . Non-combat . | . . . . . Combat . | . . . . . Robot Hacks Applied . | . . . . . Relay Couplers Released . | . . . . . Fabnet Peak Effective % . | . . . . . Robots Rewired . | . . . . . Allies Hacked . | . . . . . Hacks Repelled . | . . . . . Allies | -11 -10 -10 -10 -9 -------- Run | Yrd Mat Min Exi Min Total Allies 3 | . . . . 3 Largest Group 3 | . . . . 3 Highest-Rated Group 40 | . . . . 40 Highest-Rated Ally 16 | . . . . 16 Total Orders . | . . . . . Ally Attacks 9 | . . . . 9 Total Damage 100 | . . . . 100 Kills 3 | . . . . 3 Allies Corrupted . | . . . . . Allies Melted . | . . . . . Intel | -11 -10 -10 -10 -9 ------- Run | Yrd Mat Min Exi Min Active Infowar (turns) 725 | . 689 36 . . Structural 725 | . 689 36 . . Robot Analysis Total 1 | . 1 . . . Derelict Logs Recovered 3 | . . 2 . 1 Drone Launches . | . . . . . Drone Recoveries . | . . . . . Exploration | -11 -10 -10 -10 -9 ------------- Run | Yrd Mat Min Exi Min Turns Passed 2366 | 76 888 769 249 384 Spaces Moved 1488 | 40 504 460 222 262 Core 1 | 1 . . . . Treads 650 | 39 504 107 . . Legs . | . . . . . Wheels 837 | . . 353 222 262 Hover . | . . . . . Flight . | . . . . . Fastest Speed 50 | 50 160 95 110 125 Average Speed 136 | 157 160 128 110 125 Slowest Speed 160 | 160 160 160 125 125 Overloaded Moves . | . . . . . Propulsion Burnouts . | . . . . . Robots Hopped . | . . . . . Potential Cave-ins . | . . . . . Cave-ins Triggered . | . . . . . Exploration Rate (%) 58 | 3 93 92 43 62 Regions Visited 4 Branch Regions 3 Pre-discovered Areas 2 | . 2 . . . Known Exits Taken . | . . . . . Unknown Exits Taken 4 | 1 1 1 1 . Scrap Searched 4 | . . 2 . 2 Spaces Dug . | . . . . . Terrain Destroyed 17 | . . . . 17 Melee . | . . . . . Projectile 17 | . . . . 17 AOE . | . . . . . Terrain Rammed . | . . . . . Walls Destroyed . | . . . . . Machines Disabled . | . . . . . Actions | -11 -10 -10 -10 -9 --------- Run | Yrd Mat Min Exi Min Total 1667 | 50 549 546 228 294 Wait 35 | . 9 10 . 16 Move 1484 | 39 503 459 221 262 Hop . | . . . . . Pick Up 29 | 4 7 14 1 3 Fast Attach 9 | 6 1 2 . . Attach 11 | . . 8 3 . Detach 3 | . . . 3 . Swap 7 | 1 2 3 . 1 Drop 5 | . 5 . . . Fire 83 | . 22 49 . 12 Melee . | . . . . . Ram . | . . . . . Kick . | . . . . . Crush . | . . . . . Escape Stasis . | . . . . . Rewire 1 | . . 1 . . Trap . | . . . . . Miscellaneous . | . . . . . Route ------- -11/Scrapyard -10/Materials (discovered 6 exits: [*Mat x3] / [*Min x2] / [*Sub]) -10/Mines (discovered 4 exits: [*Mat x2] / *Exi / [*Sub]) -10/Exiles -9/Mines (discovered 1 exit: Mat) History --------- Turn | Location | Event 16 | -11/Scrapyard | Discovered new exit (range 15) 77 | -11/Scrapyard | Entered Materials 220 | -10/Materials | Discovered new exit (range 12) 228 | -10/Materials | Discovered new exit (range 13) 302 | -10/Materials | Build established: Mutant 462 | -10/Materials | Discovered new exit (range 15) 625 | -10/Materials | Discovered new exit (range 14) 708 | -10/Materials | Central database locked down 850 | -10/Materials | Discovered new exit (range 10) 875 | -10/Materials | Discovered new exit (range 15) 965 | -10/Materials | Entered Mines 966 | -10/Mines | Assembled infested the area 971 | -10/Mines | Assisted by a Guerilla fighting off Assembled 1004 | -10/Mines | Core integrity fell below 50% 1034 | -10/Mines | Destroyed 8 combat bots 1036 | -10/Mines | Lost 5 parts (2n1u2w) 1060 | -10/Mines | Discovered new exit (range 5) 1185 | -10/Mines | Discovered new exit (range 4) 1223 | -10/Mines | Learned Materials terminal intel 1462 | -10/Mines | Learned Materials interactive machine intel 1494 | -10/Mines | Core integrity fell below 20% 1553 | -10/Mines | Discovered new exit (range 7) 1688 | -10/Mines | A weapon hastily lodged in a ceiling crevice suddenly fell to the ground 1730 | -10/Mines | Deemed a non-threat by the Exiles lab entrance 1730 | -10/Mines | Discovered new exit (range 5) 1734 | -10/Mines | Entered Exiles 1761 | -10/Exiles | Met 8R-AWN 1782 | -10/Exiles | Met EX-HEX 1814 | -10/Exiles | Met EX-BIN 1827 | -10/Exiles | Aligned with FarCom system 1828 | -10/Exiles | Given EX-Vault access code 1853 | -10/Exiles | Opened EX-Vault 1862 | -10/Exiles | Found Modified TNC 1883 | -10/Exiles | Warned to stay clear of 0b10 Research branches 1965 | -10/Exiles | Discovered new exit (range 15) 1983 | -10/Exiles | Left Exiles lab with Modified TNC 1983 | -10/Exiles | Entered Mines 1986 | -9/Mines | Assisted by bots powering up and referring to "LRC-V3" 2278 | -9/Mines | Build established: Derelict-Mutant 2290 | -9/Mines | Identified exit to Materials 2367 | -9/Mines | Destroyed by YI-UF0 with YI-UF0's Doublenader Last Messages --------------- 02261_ S-10 Pest suffers critical hit (Destroy). 02261_ S-10 Pest destroyed. 02264_ HV Slug penetrates Wall. 02273_ Slug penetrates Wall. 02273_ HV Slug penetrates S-10 Pest. 02290_ Acquired derelict log, extracted data. Loading 1 Mines exit... 02291_ Acquired 10 matter. 02293_ Acquired 9 matter. 02296_ Acquired 43 matter. 02307_ Acquired 14 matter. 02309_ 8/8 ZB2D3YEQC%US0K7OBDSAFMMAUC 02311_ Acquired 1 matter. 02315_ Extracted 40 matter. 02318_ Acquired Hcp. Matter Pod. 02344_ System corrupted: Matter fused (-7). 02364_ The unstable cave ceiling collapses. 02365_ Mercenary 2a destroyed. 02367_ YI-UF0 mumbles something. 02367_ Wheel destroyed. Map ----- +----------------------------------------------------+ | ?????????????????????????????????????????????????? | | ?????????????????????????????????????????????????? | | ?????????????????????????????????????????????????? | | ?????????????????????????????????????????????????? | | ?????????????????????????????????????????????????? | | ?????????????????????????????????????????????????? | | ?????????????????????????????????????????????????? | | ?????????????????????????????????????????????????? | | ?????????????????????????????????????????????????? | | ?????????????????????????????????????????????????? | | ?????????????????????????????????????????????????? | | ?????????????????????????????????????????????????? | | ??????????????????###????????????????????????????? | | ???????????????? ???????????????????????????? | | ?????????????? ???????????????????????????? | | ?????????????? # ???????????????????????????? | | ??????????????? % ??????????????????????????? | | ???????????????? ??